bitfinex/quotes_ETHUSD_20250802
["timestamp","ask_amount","ask_price","bid_price","bid_amount"]
[1754162005445,0.001,3391.9,3390.5,0.22410512]
[1754162005446,1.7681,3391.7,3390.5,0.22410512]
[1754162005667,1.7681,3391.7,3391.3,0.1472]
[1754162005965,1.7681,3391.7,3390.6,0.55]
[1754162005966,0.4492,3391.7,3390.6,0.55]
[1754162006134,0.4492,3391.7,3391.5,0.1472]
[1754162006331,0.001,3391.9,3390.2,0.886335]
[1754162006332,1.7681,3391.6,3390.2,0.886335]
[1754162006536,0.4492,3391.5,3391.2,0.1472]
[1754162006839,0.1472,3391.7,3391.2,0.1472]
[1754162007161,0.4492,3391.6,3391.2,0.1472]
[1754162007552,0.4492,3391.5,3391.2,0.1472]
[1754162008265,0.4492,3391.4,3391.2,0.1472]
[1754162008469,0.001,3391.9,3390.2,4.10516706]
[1754162008470,1.7681,3391.3,3390.2,1.10516706]
[1754162008637,1.7681,3391.3,3391.1,0.1472]
[1754162008837,1.7681,3391.2,3390.2,0.21883206]
[1754162009042,1.7681,3391.2,3390.8,0.1472]
[1754162009382,1.7681,3391.1,3389.8,7.718]
[1754162009680,1.7681,3391.1,3389.9,0.886458]
[1754162010042,1.7681,3391.1,3390.7,0.1472]
[1754162010269,1.7681,3391.0,3390.7,0.1472]
[1754162010469,0.4492,3390.9,3390.7,0.1472]
[1754162010783,1.7681,3390.9,3389.9,0.886458]
[1754162010953,0.5964,3390.8,3390.3,0.1472]
[1754162011153,1.7681,3390.7,3390.3,0.1472]
[1754162011337,1.7681,3390.6,3390.3,0.1472]
[1754162011536,3.0378525,3391.9,3389.9,0.22653422]
[1754162011537,1.7681,3390.5,3389.9,0.22653422]
[1754162011787,0.4492,3390.5,3390.1,0.1472]
[1754162011986,0.1472,3390.8,3390.3,0.1472]
[1754162012346,1.3189,3391.0,3390.3,0.1472]
[1754162012543,0.4492,3391.1,3390.7,0.1472]
[1754162012855,0.4492,3391.0,3390.7,0.1472]
[1754162013780,0.4492,3391.5,3390.7,0.1472]
[1754162014086,0.4492,3391.5,3390.0,0.55]
[1754162016789,0.4492,3391.5,3389.6,8.26848763]
[1754162016790,1.3189,3391.4,3389.8,4.718]
[1754162016973,0.4492,3391.3,3389.8,21.73056056]
[1754162017161,0.4492,3391.3,3389.9,3.0]
[1754162017358,0.4492,3391.3,3389.8,4.718]
[1754162017359,0.48605902,3391.3,3389.8,4.718]
[1754162017558,1.3557601,3391.2,3389.6,0.22140033]
[1754162017776,0.4492,3391.1,3389.6,0.22140033]
[1754162017956,1.3189,3391.0,3389.6,0.22140033]
[1754162018280,0.4492,3390.9,3389.6,0.22140033]
[1754162019173,1.35576445,3390.8,3389.6,0.22140033]
[1754162019372,0.4492,3390.7,3389.6,0.22140033]
[1754162019573,0.55,3390.5,3389.6,0.002]
[1754162019893,0.55,3390.3,3389.6,0.002]
[1754162020059,0.55,3390.1,3389.2,0.002]
[1754162020384,0.55,3389.9,3389.2,0.002]
[1754162020692,1.80497533,3389.8,3389.2,0.002]
[1754162020990,1.7681,3389.8,3389.2,0.002]
[1754162021193,0.4492,3389.7,3389.2,0.002]
[1754162021347,0.4492,3389.7,3388.0,3.0]
[1754162021689,0.4492,3389.7,3388.2,0.01431156]
[1754162021886,0.4492,3389.7,3388.1,0.01705081]
[1754162022551,0.4492,3389.7,3388.0,3.77052953]
[1754162022781,0.4492,3389.7,3388.1,0.01705181]
[1754162022976,1.3189,3389.6,3388.1,0.01705131]
[1754162023278,0.4492,3389.5,3388.1,0.01705131]
[1754162023479,0.4492,3389.5,3388.0,3.77052953]
[1754162023676,1.3189,3389.4,3388.0,0.22052953]
[1754162023897,0.1472,3389.3,3388.8,0.1472]
[1754162024091,0.5964,3389.3,3388.8,0.1472]
[1754162024294,1.7681,3389.2,3388.8,0.1472]
[1754162024491,0.1472,3389.3,3388.8,0.1472]
[1754162024692,1.7681,3389.1,3388.8,0.1472]
[1754162024895,0.4492,3389.1,3388.8,0.1472]
[1754162025312,1.3189,3389.5,3388.0,0.55]
[1754162025496,0.1472,3389.4,3389.0,0.1472]
[1754162025678,0.4492,3389.3,3389.0,0.1472]
[1754162025884,1.4661,3389.4,3389.0,0.1472]
[1754162026085,0.5964,3389.4,3389.0,0.1472]
[1754162026521,1.3189,3389.7,3388.9,0.21886658]
[1754162026724,1.4661,3389.7,3389.2,0.1472]
[1754162027026,1.7681,3389.6,3389.2,0.1472]
[1754162027525,0.1472,3389.7,3389.2,0.1472]
[1754162027829,1.7681,3389.5,3389.2,0.1472]
[1754162027987,1.7681,3389.4,3389.2,0.1472]
[1754162028184,1.7681,3389.3,3389.2,0.1472]
[1754162028385,0.1472,3389.7,3389.2,0.1472]
[1754162028707,1.7681,3389.6,3388.9,0.22332329]
[1754162028936,0.5964,3389.5,3389.0,0.1472]
[1754162029223,1.7681,3389.4,3389.0,0.1472]
[1754162029526,1.7681,3389.3,3388.0,0.002]
[1754162029683,0.1472,3389.1,3388.7,0.1472]
[1754162029891,1.7681,3389.0,3388.7,0.1472]
[1754162030102,1.3189,3389.0,3388.7,0.1472]
[1754162030312,0.4492,3388.9,3388.7,0.1472]
[1754162030855,0.4492,3389.8,3388.4,0.55]
[1754162031151,1.9153,3390.1,3389.6,0.1472]
[1754162031311,0.4492,3390.0,3389.6,0.1472]
[1754162031498,0.4492,3390.3,3389.9,0.1472]
[1754162031695,0.4492,3390.2,3389.9,0.1472]
[1754162032543,0.4301,3390.1,3389.9,0.1472]
[1754162033302,1.2643,3390.2,3389.9,0.1472]
[1754162033497,0.1472,3390.4,3389.9,0.1472]
[1754162033749,1.6944,3390.3,3389.9,0.1472]
[1754162033900,0.4301,3390.2,3389.9,0.1472]
[1754162034243,1.6944,3390.1,3389.8,0.22288465]
[1754162034551,1.87847315,3390.0,3389.6,0.1472]
[1754162034716,1.87847315,3390.0,3387.3,0.75100512]
[1754162034717,1.6944,3389.9,3388.1,0.22656466]
[1754162034923,0.1472,3389.5,3389.0,0.1472]
[1754162035117,0.1472,3389.5,3387.3,3.70318942]
[1754162035118,1.6944,3389.4,3387.3,0.86840512]
[1754162035328,0.1472,3388.8,3388.3,0.1472]
[1754162035654,1.6944,3388.7,3388.3,0.1472]
[1754162035856,1.6944,3388.6,3388.3,0.1472]
[1754162036155,0.1472,3388.4,3386.6,26.02316056]
[1754162036471,1.6944,3388.3,3387.9,0.1472]
[1754162036767,1.6944,3388.2,3387.9,0.1472]
[1754162037144,0.1472,3388.4,3387.9,0.1472]
[1754162037466,0.1472,3388.4,3387.1,0.1174]
[1754162037467,0.4301,3388.6,3388.1,0.1472]
[1754162037779,0.4301,3388.6,3387.1,0.1174]
[1754162037780,0.4301,3388.5,3388.3,0.1472]
[1754162038212,4.719,3389.4,3388.3,0.1472]
[1754162038417,0.1472,3388.5,3388.0,0.1472]
[1754162038613,3.55,3389.3,3388.0,0.1472]
[1754162038857,0.4301,3388.5,3388.0,0.1472]
[1754162039018,1.2643,3388.5,3388.0,0.1472]
[1754162039217,0.4301,3388.4,3388.0,0.1472]
[1754162039419,1.6944,3388.4,3388.0,0.1472]
[1754162039711,1.6944,3388.3,3388.0,0.1472]
[1754162039939,1.2643,3388.3,3388.0,0.1472]
[1754162040162,0.4301,3388.2,3387.1,0.22098263]
[1754162040322,0.4301,3388.2,3387.9,0.1472]
[1754162040761,0.001,3392.0,3388.1,0.1472]
[1754162040762,0.1472,3388.6,3388.1,0.1472]
[1754162040942,0.1472,3388.8,3388.3,0.1472]
[1754162041273,1.2643,3388.8,3388.3,0.1472]
[1754162041432,1.2643,3389.3,3387.9,0.65331797]
[1754162041697,1.2643,3389.3,3388.7,0.1472]
[1754162041899,1.2643,3389.3,3389.0,0.1472]
[1754162042227,1.2643,3389.2,3389.0,0.1472]
[1754162042432,1.2643,3389.1,3389.0,0.1472]
[1754162042629,1.4115,3389.1,3388.5,0.1472]
[1754162042800,1.6944,3389.1,3387.9,0.22153264]
[1754162042998,1.6944,3389.1,3388.8,0.1472]
[1754162043317,1.8416,3389.0,3388.5,0.1472]
[1754162043686,0.1472,3389.0,3388.5,0.1472]
[1754162043890,1.6944,3388.9,3388.5,0.1472]
[1754162044292,1.6944,3388.8,3388.5,0.1472]
[1754162044598,1.2643,3388.7,3388.5,0.1472]
[1754162044797,0.1472,3389.0,3388.5,0.1472]
[1754162045005,1.8416,3389.0,3388.5,0.1472]
[1754162045402,4.719,3389.5,3388.1,3.0]
[1754162045403,1.6944,3389.5,3388.1,3.0]
[1754162045601,1.8416,3389.5,3388.9,0.1472]
[1754162046435,1.8416,3389.5,3389.1,0.1472]
[1754162046733,1.6944,3389.4,3389.1,0.1472]
[1754162047109,1.6944,3389.3,3389.1,0.1472]
[1754162047830,1.2643,3389.2,3389.1,0.1472]
[1754162048535,0.4301,3389.3,3389.1,0.1472]
[1754162048696,0.1472,3389.5,3389.1,0.1472]
[1754162049059,1.6944,3389.5,3389.1,0.1472]
[1754162049841,0.001,3389.7,3388.7,17.01256056]
[1754162050047,0.001,3390.1,3389.6,0.1472]
[1754162050413,0.001,3390.1,3390.0,0.1472]
[1754162052447,0.001,3390.1,3388.8,3.1174]
[1754162052448,1.6954,3390.1,3388.8,0.55]
[1754162052629,0.001,3390.1,3389.8,0.1472]
[1754162053025,1.6944,3390.0,3388.6,0.4301]
[1754162053324,0.1472,3389.5,3389.1,0.1472]
[1754162053637,0.1472,3390.0,3389.5,0.1472]
[1754162053821,0.001,3390.1,3389.9,0.1472]
[1754162054457,1.2643,3390.0,3389.9,0.1472]
[1754162054653,0.4311,3390.1,3389.9,0.1472]
[1754162054654,0.001,3390.1,3389.9,0.1472]
[1754162059112,0.001,3390.8,3389.9,0.5773]
[1754162059310,0.001,3390.8,3390.5,0.1472]
[1754162059917,1.2653,3390.8,3390.5,0.1472]
[1754162060372,1.2653,3390.8,3389.9,0.4301]
[1754162060373,0.001,3390.8,3389.9,0.5475]
[1754162060553,0.001,3390.8,3390.7,0.1472]
[1754162061212,1.2653,3390.8,3390.7,0.1472]
[1754162061663,1.6954,3390.8,3390.7,0.1472]
[1754162061834,1.6954,3390.8,3390.5,0.1472]
[1754162062152,1.75516554,3390.7,3389.6,0.22607117]
[1754162062323,1.2807,3390.7,3389.0,8.267]
[1754162062511,0.001,3390.8,3390.6,0.1472]
[1754162064370,1.2807,3390.7,3390.6,0.1472]
[1754162065177,1.7183,3390.7,3390.6,0.1472]
[1754162065335,1.7183,3390.7,3390.0,0.22472673]
[1754162065530,1.2807,3390.6,3390.3,0.1472]
[1754162065731,1.7183,3390.6,3390.3,0.1472]
[1754162066075,0.1472,3390.4,3389.8,0.1472]
[1754162066383,1.2807,3390.4,3390.1,0.1472]
[1754162066542,1.2807,3390.4,3389.3,0.4301]
[1754162066543,0.4376,3390.3,3388.8,0.4301]
[1754162066872,1.2807,3390.2,3389.7,0.1472]
[1754162067046,0.1472,3390.3,3389.7,0.1472]
[1754162067248,1.2807,3390.1,3389.7,0.1472]
[1754162067445,0.4376,3390.2,3389.7,0.1472]
[1754162067651,1.2807,3390.2,3389.1,0.5208]
[1754162067832,1.2807,3390.2,3390.0,0.1472]
[1754162068037,1.7183,3390.1,3390.0,0.1472]
[1754162070666,1.7183,3390.1,3389.7,0.1472]
[1754162070860,1.7183,3390.0,3389.7,0.1472]
[1754162071065,0.1482,3390.2,3389.7,0.1472]
[1754162071066,1.7183,3389.9,3389.7,0.1472]
[1754162071379,1.7183,3389.8,3389.7,0.1472]
[1754162071756,1.7183,3389.8,3389.6,0.002]
[1754162071992,0.4376,3389.8,3389.6,0.002]
[1754162072293,1.2807,3389.7,3389.6,0.002]
[1754162073372,1.2807,3390.0,3389.6,0.002]
[1754162073722,0.1472,3390.1,3389.6,0.1492]
[1754162073870,7.092,3392.5,3389.9,3.0]
[1754162074070,0.1472,3391.7,3390.0,0.1472]
[1754162074266,0.1472,3391.7,3390.6,0.1472]
[1754162074267,0.1472,3391.1,3390.6,0.1472]
[1754162074521,1.7183,3391.0,3390.6,0.1472]
[1754162074884,1.75516336,3390.9,3390.6,0.1472]
[1754162075080,1.7183,3390.8,3389.6,0.002]
[1754162075381,0.03686554,3390.7,3389.6,0.002]
[1754162075588,1.8655,3390.6,3390.1,0.1472]
[1754162076112,1.7183,3390.5,3390.1,0.1472]
[1754162076518,1.7183,3390.4,3390.1,0.1472]
[1754162076717,0.1472,3390.6,3390.0,0.1472]
[1754162077013,1.7183,3390.3,3390.0,0.1472]
[1754162077172,1.2807,3390.3,3390.0,0.1472]
[1754162077617,0.1472,3390.7,3390.2,0.1472]
[1754162077767,1.2807,3390.7,3390.2,0.1472]
[1754162077973,1.2807,3390.6,3390.2,0.1472]
[1754162078211,0.1472,3390.8,3390.2,0.1472]
[1754162078721,1.2807,3392.9,3390.7,14.20557148]
[1754162079014,1.2807,3392.6,3391.7,14.05837148]
[1754162079176,1.2807,3393.0,3391.8,3.0]
[1754162079370,1.2807,3393.0,3391.8,4.0685]
[1754162079601,1.2807,3393.0,3391.9,0.5185]
[1754162079912,1.2807,3393.9,3392.0,0.55]
[1754162080227,1.2807,3393.9,3393.0,3.0]
[1754162080572,0.4376,3394.1,3393.0,3.0]
[1754162080822,0.4376,3394.1,3393.1,0.16491482]
[1754162081021,0.4376,3394.1,3393.2,0.16491482]
[1754162081178,0.4376,3394.1,3393.3,0.16491482]
[1754162081373,0.4376,3394.1,3393.4,0.16491482]
[1754162081573,0.4376,3394.1,3393.5,0.16491482]
[1754162081777,1.2807,3394.0,3393.6,0.16491482]
[1754162082002,0.4376,3393.9,3393.7,0.16491482]
[1754162082271,1.7183,3393.9,3393.8,0.16491482]
[1754162082481,1.7183,3393.9,3392.6,0.16491482]
[1754162082680,1.7183,3393.8,3392.7,0.16491482]
[1754162082911,1.7183,3393.7,3392.8,0.16491482]
[1754162083118,1.7183,3393.7,3392.9,0.16491482]
[1754162083320,1.7183,3393.7,3392.7,0.22217674]
[1754162083321,1.75513404,3393.6,3393.0,0.16491482]
[1754162083521,1.7183,3393.6,3393.1,0.16491482]
[1754162083813,0.03682644,3394.3,3392.0,0.16491482]
[1754162083814,1.75513512,3393.5,3392.0,0.16491482]
[1754162084115,1.7183,3393.4,3392.1,0.16491482]
[1754162084416,0.03683729,3393.3,3392.2,0.16491482]
[1754162084617,1.7183,3393.2,3392.3,0.16491482]
[1754162084918,1.2807,3393.2,3392.4,0.16491482]
[1754162085074,1.2807,3393.2,3392.5,0.16491482]
[1754162085272,1.2807,3393.2,3392.6,0.16491482]
[1754162085480,0.4376,3393.9,3392.7,0.16491482]
[1754162085697,1.2807,3393.8,3392.8,0.16491482]
[1754162085891,1.2807,3393.8,3392.9,0.16491482]
[1754162086119,1.2807,3393.8,3393.0,0.16491482]
[1754162086321,1.2807,3393.8,3392.6,0.16491482]
[1754162086653,0.4376,3393.7,3392.7,0.16491482]
[1754162086822,0.4376,3393.7,3392.8,0.16491482]
[1754162087124,1.31753404,3393.6,3392.9,0.16491482]
[1754162087283,0.4376,3393.5,3392.1,0.55]
[1754162087484,1.2807,3393.4,3392.2,0.16491482]
[1754162087723,0.4376,3393.3,3392.3,0.16491482]
[1754162088025,1.2807,3393.2,3392.4,0.16491482]
[1754162088229,1.2807,3393.2,3392.0,0.4301]
[1754162088230,1.2807,3393.2,3392.5,0.16491482]
[1754162088441,1.2807,3393.2,3392.0,0.4301]
[1754162088442,0.1,3395.6,3392.6,0.16491482]
[1754162088735,0.1,3395.6,3391.9,0.22656883]
[1754162088736,1.2807,3394.0,3393.6,0.1472]
[1754162089087,0.4376,3393.9,3392.6,0.16491482]
[1754162089423,1.2807,3393.8,3393.4,0.1472]
[1754162089632,1.2807,3393.8,3392.2,0.6384]
[1754162089633,0.47443295,3393.7,3392.8,0.16491482]
[1754162089784,0.47443295,3393.7,3391.8,3.4301]
[1754162089785,0.1472,3393.4,3393.0,0.1472]
[1754162089991,1.75513729,3393.3,3392.1,0.16491482]
[1754162090298,1.75513729,3393.3,3391.7,7.092]
[1754162090299,0.1472,3393.1,3392.6,0.1472]
[1754162090507,1.75514055,3393.0,3392.6,0.1472]
[1754162090727,1.7183,3392.9,3392.6,0.1472]
[1754162091046,1.2807,3392.8,3392.6,0.1472]
[1754162091950,1.301,3392.7,3392.6,0.1472]
[1754162092115,1.7628,3392.7,3392.6,0.1472]
[1754162092450,1.7628,3392.7,3392.0,0.16491482]
[1754162092739,1.7628,3392.6,3392.1,0.1472]
[1754162093127,1.7628,3392.5,3392.1,0.1472]
[1754162093327,1.301,3392.5,3392.4,0.1472]
[1754162093703,1.91,3392.9,3392.4,0.1472]
[1754162093900,1.301,3392.9,3392.4,0.1472]
[1754162094209,1.301,3392.9,3391.9,0.81935155]
[1754162094432,0.001,3393.1,3392.0,0.16491482]
[1754162094738,0.001,3393.1,3392.8,0.1472]
[1754162094940,0.001,3393.1,3392.2,0.55]
[1754162094941,0.001,3393.1,3393.0,0.1472]
[1754162098170,1.302,3393.1,3393.0,0.1472]
[1754162098665,1.7638,3393.1,3393.0,0.1472]
[1754162100068,0.001,3393.1,3393.0,0.1472]
[1754162101439,1.7638,3393.1,3393.0,0.1472]
[1754162101679,1.7638,3393.1,3392.0,3.0]
[1754162101680,1.7638,3393.1,3392.9,0.1472]
[1754162101947,0.001,3393.1,3392.2,0.4301]
[1754162102142,0.001,3393.1,3393.0,0.1472]
[1754162102547,0.001,3394.1,3393.1,3.55]
[1754162102769,0.001,3394.1,3393.8,0.55]
[1754162102980,0.001,3394.1,3394.0,0.1472]
[1754162103456,0.001,3394.1,3394.0,0.6407]
[1754162103657,0.001,3394.1,3394.0,1.1907]
[1754162104166,0.001,3394.1,3394.0,1.35502165]
[1754162104962,1.7628,3395.6,3394.1,3.0]
[1754162105272,1.7628,3395.6,3394.4,0.55]
[1754162105431,1.7628,3395.6,3395.5,0.1472]
[1754162107234,1.7628,3395.6,3395.5,0.31152165]
[1754162107439,1.7628,3395.6,3395.5,0.16432165]
[1754162107663,1.91,3395.6,3395.5,0.16432165]
[1754162108379,1.7628,3395.6,3395.5,0.16432165]
[1754162109648,1.91,3395.6,3395.5,0.16432165]
[1754162111081,1.7628,3395.6,3395.5,0.16432165]
[1754162113183,0.001,3395.9,3395.5,0.16432165]
[1754162113352,0.001,3395.9,3395.6,0.16432165]
[1754162113689,0.001,3395.9,3395.8,0.1472]
[1754162113894,0.001,3395.9,3395.8,0.31152165]
[1754162114885,1.302,3395.9,3395.8,0.31152165]
[1754162115085,0.001,3395.9,3395.8,0.31152165]
[1754162115648,1.302,3395.9,3395.8,0.31152165]
[1754162116288,1.7638,3395.9,3395.8,0.31152165]
[1754162116585,1.7638,3395.9,3395.5,0.1472]
[1754162116753,0.001,3395.9,3395.6,0.16432165]
[1754162116955,1.7628,3395.8,3395.7,0.16432165]
[1754162117187,1.7628,3395.8,3395.5,0.1472]
[1754162117188,1.7628,3395.8,3395.6,0.16432165]
[1754162117370,0.001,3395.9,3395.7,0.16432165]
[1754162117692,0.001,3395.9,3395.8,0.16432165]
[1754162118103,1.302,3395.9,3395.8,0.16432165]
[1754162118603,0.001,3395.9,3395.8,0.16432165]
[1754162119104,1.302,3395.9,3395.8,0.31152165]
[1754162121017,0.001,3395.9,3395.8,0.31152165]
[1754162123398,0.001,3395.9,3395.8,0.31149878]
[1754162124250,0.001,3395.9,3395.8,0.74159878]
[1754162125491,0.001,3396.9,3395.9,0.55]
[1754162125710,0.001,3396.9,3396.3,3.0]
[1754162126022,0.001,3396.9,3396.4,0.16429878]
[1754162126310,0.001,3396.9,3396.5,0.16429878]
[1754162126471,0.001,3396.9,3396.6,0.16429878]
[1754162126666,0.001,3396.9,3396.7,0.16429878]
[1754162126894,0.001,3396.9,3396.3,3.4301]
[1754162126895,1.2048,3398.3,3396.8,17.72074378]
[1754162127100,1.2048,3398.6,3397.7,17.006445]
[1754162127414,1.6387,3398.9,3397.8,3.16429878]
[1754162127617,0.001,3399.1,3397.9,0.71429878]
[1754162127781,0.001,3399.1,3398.5,3.0]
[1754162128110,0.001,3399.1,3399.0,17.006445]
[1754162128310,0.001,3399.5,3399.0,17.72060456]
[1754162128469,0.001,3399.5,3399.1,3.61295956]
[1754162128670,0.001,3399.5,3399.2,0.16415956]
[1754162128886,0.001,3399.5,3399.3,0.16415956]
[1754162129085,0.001,3399.5,3399.4,0.16415956]
[1754162129484,0.001,3399.5,3399.4,3.16415956]
[1754162129682,0.001,3399.5,3399.4,0.16415956]
[1754162130615,1.2048,3400.7,3399.5,0.55]
[1754162130788,1.2048,3401.1,3399.7,0.55]
[1754162130991,1.2048,3401.1,3400.0,0.55]
[1754162131298,1.2048,3401.1,3400.0,0.71415956]
[1754162131510,1.2048,3401.1,3400.1,3.0]
[1754162131511,0.4339,3401.0,3400.1,3.0]
[1754162131855,1.24155497,3400.9,3400.2,0.16415956]
[1754162131997,0.4339,3400.8,3400.1,0.21690467]
[1754162132199,1.2048,3400.7,3400.1,0.16415956]
[1754162132701,0.4339,3400.6,3399.9,3.0]
[1754162132899,1.2048,3400.5,3400.0,0.16415956]
[1754162133101,0.4339,3400.4,3399.6,0.16415956]
[1754162133422,1.2048,3400.3,3399.3,3.2171701]
[1754162133625,1.2048,3400.3,3399.4,0.16415956]
[1754162133823,1.2048,3400.3,3399.4,0.16293721]
[1754162134024,0.001,3401.6,3399.4,0.55]
[1754162134225,1.2048,3400.7,3399.4,0.71293721]
[1754162134533,0.4339,3400.6,3399.4,0.71293721]
[1754162134706,1.2048,3400.5,3399.2,4.705]
[1754162134908,1.2048,3400.5,3399.2,4.92564152]
[1754162135312,1.2048,3400.5,3399.3,0.4488]
[1754162135541,1.2048,3400.5,3400.4,0.1472]
[1754162135744,1.6387,3400.5,3400.4,0.1472]
[1754162135944,1.6387,3400.5,3399.2,0.22064152]
[1754162136268,1.6387,3400.5,3398.1,7.075]
[1754162136269,0.1472,3400.1,3398.6,4.704]
[1754162136568,0.55,3399.9,3398.2,4.704]
[1754162136868,1.6387,3399.8,3398.2,4.704]
[1754162137070,7.074,3401.2,3398.5,0.1472]
[1754162137071,1.67546795,3399.7,3398.5,0.1472]
[1754162137270,1.6387,3399.6,3397.9,1.09968304]
[1754162137438,0.1472,3398.8,3398.3,0.1472]
[1754162137637,1.6387,3398.7,3398.3,0.1472]
[1754162137833,1.6387,3398.6,3397.9,1.09968304]
[1754162138035,1.2048,3398.5,3398.2,0.1472]
[1754162138239,1.2048,3398.5,3397.9,1.09968304]
[1754162138240,0.4339,3398.4,3398.0,0.1472]
[1754162138642,1.2048,3398.3,3398.0,0.1472]
[1754162138842,1.2048,3398.3,3397.9,0.884146]
[1754162139157,1.2048,3398.3,3398.2,0.1472]
[1754162139733,1.2048,3399.1,3398.2,0.1472]
[1754162139957,1.2048,3399.5,3399.2,0.1472]
[1754162140156,1.2048,3399.5,3399.0,0.1472]
[1754162140356,0.1472,3399.8,3397.3,0.35224977]
[1754162140357,1.6387,3399.4,3399.3,0.1472]
[1754162140536,1.6387,3399.4,3398.9,0.21892579]
[1754162140736,3.0,3400.6,3398.0,4.72]
[1754162140737,1.2048,3399.3,3398.0,4.72]
[1754162141171,1.2048,3399.3,3399.2,0.1472]
[1754162141736,1.6387,3399.3,3397.9,4.721]
[1754162141936,1.6387,3399.2,3397.7,4.72]
[1754162142232,1.2048,3399.1,3399.0,0.1472]
[1754162142460,1.6387,3399.1,3399.0,0.1472]
[1754162142662,0.55,3399.0,3397.7,0.22356967]
[1754162142845,0.55,3398.8,3397.7,0.22356967]
[1754162143174,0.1472,3398.5,3398.0,0.1472]
[1754162143339,1.6387,3398.4,3398.0,0.1472]
[1754162143532,0.4339,3398.3,3398.0,0.1472]
[1754162143751,1.6387,3398.2,3398.0,0.1472]
[1754162144074,1.6387,3398.1,3398.0,0.1472]
[1754162145837,0.1472,3398.5,3398.0,0.1472]
[1754162146174,1.6387,3398.5,3398.0,0.1472]
[1754162146470,1.2048,3398.4,3398.3,0.1472]
[1754162147032,1.6387,3398.4,3398.3,0.1472]
[1754162149168,1.2048,3398.4,3398.3,0.1472]
[1754162150566,1.6387,3398.4,3398.1,0.1472]
[1754162150742,0.1472,3398.6,3398.1,0.1472]
[1754162150947,1.6387,3398.5,3398.1,0.1472]
[1754162151278,1.6387,3398.4,3398.1,0.1472]
[1754162151439,0.1472,3398.6,3398.1,0.1472]
[1754162151643,1.6387,3398.3,3398.1,0.1472]
[1754162151984,0.1472,3398.6,3398.1,0.1472]
[1754162151985,1.6746,3398.2,3398.1,0.1472]
[1754162152665,1.6746,3398.7,3398.1,0.1472]
[1754162152982,1.6746,3398.7,3398.4,0.1472]
[1754162153154,0.4447,3399.1,3397.8,3.0]
[1754162153487,0.4447,3399.1,3399.0,0.1472]
[1754162153645,1.6746,3399.1,3399.0,0.1472]
[1754162154046,1.8218,3399.1,3398.6,0.1472]
[1754162154243,0.1472,3398.7,3398.2,0.1472]
[1754162154545,1.6746,3398.6,3398.2,0.1472]
[1754162154851,1.6746,3398.5,3398.2,0.1472]
[1754162155187,1.6746,3398.4,3396.9,0.61059253]
[1754162155392,1.6746,3398.4,3398.1,0.1472]
[1754162155574,1.2299,3398.3,3398.1,0.1472]
[1754162155779,0.1472,3398.7,3398.1,0.1472]
[1754162155984,1.6746,3398.6,3398.1,0.1472]
[1754162156290,1.2299,3398.5,3398.1,0.1472]
[1754162156490,0.1472,3398.7,3398.1,0.1472]
[1754162156647,1.2299,3398.4,3398.1,0.1472]
[1754162156846,1.2299,3398.3,3398.1,0.1472]
[1754162157059,1.2299,3398.2,3398.1,0.1472]
[1754162157256,1.2299,3398.7,3398.1,0.1472]
[1754162157502,1.2299,3398.7,3398.2,0.1472]
[1754162157678,1.3771,3398.7,3398.2,0.1472]
[1754162157996,1.2299,3398.6,3398.2,0.1472]
[1754162158148,1.6746,3398.6,3398.2,0.1472]
[1754162158349,1.6746,3398.5,3398.2,0.1472]
[1754162158685,0.55,3399.3,3396.7,0.22218159]
[1754162158686,0.55,3398.3,3396.7,0.22218159]
[1754162159072,0.55,3398.1,3396.2,0.1366]
[1754162159393,1.71138634,3398.0,3396.4,3.0]
[1754162159547,1.7799,3397.9,3396.4,3.0]
[1754162159748,0.03678851,3397.8,3396.4,3.0]
[1754162159973,0.55,3397.7,3395.5,0.1]
[1754162160173,0.55,3397.5,3396.4,0.21864109]
[1754162160374,0.55,3397.3,3395.0,7.075]
[1754162160585,6.41639284,3397.4,3395.0,7.075]
[1754162160586,6.3796,3397.4,3395.7,0.1366]
[1754162160787,1.2299,3397.3,3395.7,0.1366]
[1754162161067,0.4447,3397.2,3395.7,0.1366]
[1754162161265,1.2299,3397.1,3395.7,0.1366]
[1754162161900,1.2299,3397.1,3395.7,0.35760705]
[1754162162505,0.4447,3397.0,3395.7,0.35760705]
[1754162162799,1.2299,3396.9,3395.4,0.63231677]
[1754162163166,1.2299,3396.9,3395.3,0.1366]
[1754162163397,0.4447,3396.8,3395.3,0.1366]
[1754162163602,1.2299,3396.7,3395.0,7.075]
[1754162163903,0.4815015,3396.6,3395.1,3.0]
[1754162164206,1.2299,3396.5,3395.1,3.0]
[1754162164405,0.03680367,3396.4,3395.1,3.0]
[1754162164606,0.4447,3396.4,3395.1,3.0]
[1754162164807,1.2299,3396.3,3395.0,7.29711263]
[1754162164973,0.03680584,3396.2,3395.0,7.29711263]
[1754162165160,1.2299,3396.1,3395.1,3.0]
[1754162165364,1.2299,3396.1,3395.0,0.22211263]
[1754162165365,0.4447,3396.0,3395.0,0.22211263]
[1754162165561,1.2299,3395.9,3394.6,0.1366]
[1754162167123,0.4447,3395.8,3394.6,0.1366]
[1754162167416,1.2299,3395.7,3394.6,0.1366]
[1754162168200,1.2299,3395.7,3394.5,0.60429247]
[1754162168519,1.2299,3396.4,3394.6,0.1366]
[1754162168674,1.2299,3396.4,3395.6,0.1472]
[1754162168871,1.2299,3396.4,3395.2,3.08187234]